bitfinex-derivatives/quotes_ETHF0:USTF0_20250909
["timestamp","ask_amount","ask_price","bid_price","bid_amount"]
[1757433403473,0.8755,4292.8,4292.7,0.4969]
[1757433404073,0.8755,4292.8,4292.7,0.2569]
[1757433404674,0.8755,4292.8,4292.7,0.5]
[1757433405773,0.8755,4292.8,4292.7,0.74]
[1757433406572,0.8755,4292.8,4292.7,1.0525]
[1757433406968,0.8755,4292.8,4292.7,0.74]
[1757433408575,0.8755,4292.8,4292.7,1.0521]
[1757433409071,0.6246,4292.8,4292.7,1.0521]
[1757433409271,3.2078,4293.4,4292.7,1.0521]
[1757433409272,0.5775,4293.3,4293.2,0.4798]
[1757433409479,0.5775,4293.7,4293.6,0.7919]
[1757433409673,0.5775,4293.7,4293.6,1.0319]
[1757433410075,0.5775,4293.7,4293.6,3.9276]
[1757433410270,0.3419,4293.9,4293.8,0.4798]
[1757433410466,0.3419,4293.9,4293.8,0.7919]
[1757433410874,0.5775,4293.9,4293.8,0.7919]
[1757433411071,0.8248,4293.9,4293.8,0.4798]
[1757433411583,0.8248,4293.9,4293.8,0.7198]
[1757433413171,0.8248,4293.9,4293.8,0.4874]
[1757433414173,0.8248,4293.9,4293.6,3.2078]
[1757433414373,0.8248,4293.8,4293.7,0.4874]
[1757433415276,0.8248,4293.8,4293.7,3.6952]
[1757433416379,0.8248,4293.8,4293.7,3.9276]
[1757433417081,0.8248,4293.8,4293.7,3.6876]
[1757433417277,0.8248,4293.8,4293.7,4.2397]
[1757433418175,0.8248,4293.8,4293.7,3.9276]
[1757433419177,0.3419,4293.8,4293.7,4.2397]
[1757433419375,0.5775,4293.8,4293.7,4.2397]
[1757433419679,0.4878,4294.0,4293.8,0.3121]
[1757433419980,0.4878,4294.0,4293.9,1.0319]
[1757433420283,0.4878,4294.0,4293.5,0.24]
[1757433420284,0.9707,4294.0,4293.5,0.24]
[1757433420474,0.8248,4293.4,4293.3,1.25422025]
[1757433420675,0.8248,4293.4,4293.3,0.7198]
[1757433421380,0.8248,4293.4,4293.3,1.0319]
[1757433421381,0.5775,4293.4,4293.3,1.0319]
[1757433421980,0.1459,4294.0,4293.3,1.0319]
[1757433422175,0.9707,4294.0,4293.9,0.2474]
[1757433422381,0.9649,4293.5,4293.4,0.4798]
[1757433422581,0.9649,4293.5,4293.4,0.7198]
[1757433423084,0.9649,4293.5,4293.4,0.4874]
[1757433423383,0.9649,4293.5,4293.4,0.7198]
[1757433423587,0.1459,4294.0,4293.4,1.0319]
[1757433423785,0.6288,4294.0,4293.9,0.2474]
[1757433423985,0.9707,4294.0,4293.9,0.7198]
[1757433424391,0.9707,4294.0,4293.9,0.24]
[1757433424886,0.9707,4294.0,4293.2,1.56632025]
[1757433425086,0.3419,4293.9,4293.3,0.24]
[1757433425285,0.5775,4293.4,4293.3,0.4798]
[1757433425479,0.5775,4293.4,4293.3,0.7198]
[1757433426083,0.8248,4293.4,4293.3,0.4798]
[1757433426289,0.4829,4293.4,4293.1,3.2078]
[1757433426479,0.3419,4293.3,4293.2,0.24]
[1757433426679,0.3419,4293.2,4292.6,1.25422025]
[1757433426890,0.5775,4292.7,4292.6,1.73402025]
[1757433427187,0.5775,4292.7,4292.6,1.0319]
[1757433427389,0.8248,4292.7,4292.6,0.4798]
[1757433427583,0.8248,4292.7,4292.6,0.7198]
[1757433428286,0.8248,4292.7,4292.6,1.0319]
[1757433429291,0.5775,4292.7,4292.6,1.0319]
[1757433429685,0.3419,4292.7,4292.6,1.0319]
[1757433429990,0.5775,4292.7,4292.6,1.0319]
[1757433431486,0.3419,4293.2,4293.1,0.4798]
[1757433431688,0.8248,4293.2,4292.5,0.3121]
[1757433431889,0.4829,4292.7,4292.6,0.4874]
[1757433432090,0.8248,4292.7,4292.6,0.4874]
[1757433432283,0.8248,4292.7,4292.6,0.2474]
[1757433432487,0.8248,4292.7,4292.6,0.4874]
[1757433433582,0.8248,4292.7,4292.6,0.2474]
[1757433433789,0.8248,4292.7,4292.6,0.4874]
[1757433434384,0.1401,4292.5,4292.4,3.2078]
[1757433434583,0.623,4292.5,4292.4,3.6952]
[1757433434787,0.9649,4292.5,4292.4,3.9276]
[1757433435790,0.3419,4292.9,4292.4,4.2397]
[1757433435994,0.8248,4292.9,4292.8,0.4798]
[1757433437503,0.8248,4292.9,4292.8,0.2474]
[1757433437695,0.8248,4292.9,4292.8,0.24]
[1757433437895,0.7356,4292.5,4292.4,3.6618]
[1757433438095,0.9596,4292.5,4292.4,3.6618]
[1757433438295,0.9596,4292.5,4292.4,3.2078]
[1757433438506,0.9596,4292.5,4292.4,3.4478]
[1757433438896,0.9596,4292.5,4292.4,3.6773]
[1757433439601,0.9596,4292.5,4292.4,4.201]
[1757433440103,0.9596,4292.5,4292.4,3.9018]
[1757433441601,0.9596,4292.5,4292.4,3.4373]
[1757433441905,0.9596,4292.5,4292.4,3.4478]
[1757433442094,0.9596,4292.0,4291.9,3.2078]
[1757433442402,0.1445,4291.5,4291.3,3.2078]
[1757433442597,0.3702,4291.5,4291.4,0.9932]
[1757433443104,0.7356,4291.5,4291.4,0.9932]
[1757433444003,0.3654,4291.5,4291.4,0.9932]
[1757433445203,0.7356,4292.0,4291.9,0.454]
[1757433445402,0.9596,4292.0,4291.9,0.454]
[1757433445802,0.9596,4292.0,4291.9,0.2295]
[1757433446209,0.1445,4292.5,4291.9,0.7532]
[1757433446499,0.1445,4292.5,4292.4,0.7532]
[1757433446500,0.2257,4292.5,4292.4,0.7532]
[1757433446698,0.5942,4292.5,4292.4,0.2295]
[1757433446898,0.9596,4292.5,4292.4,0.2295]
[1757433448895,0.5911,4291.8,4291.7,3.4373]
[1757433449096,0.8151,4291.8,4291.7,3.6773]
[1757433449300,0.8151,4291.8,4291.7,3.9018]
[1757433449510,0.5911,4291.8,4291.7,4.201]
[1757433449702,0.3654,4291.8,4291.7,4.201]
[1757433450095,0.5911,4291.8,4291.7,4.201]
[1757433450806,0.3654,4291.8,4291.7,4.201]
[1757433451208,0.5911,4291.8,4291.7,4.201]
[1757433451397,0.5911,4291.8,4291.7,3.2078]
[1757433451602,0.8151,4291.8,4291.7,3.6773]
[1757433452309,0.8151,4291.8,4291.7,3.9018]
[1757433453711,0.8151,4291.8,4291.7,3.6618]
[1757433453908,0.8151,4291.8,4291.7,3.2078]
[1757433454108,0.8151,4291.8,4291.2,3.2078]
[1757433454109,0.8151,4291.3,4291.2,3.2078]
[1757433454409,0.8151,4291.3,4290.3,0.2992]
[1757433454410,0.9596,4291.0,4290.9,0.24]
[1757433456112,0.9596,4291.0,4290.9,0.4695]
[1757433456311,0.9596,4291.0,4290.9,0.2295]
[1757433458008,0.1445,4291.5,4290.9,0.7532]
[1757433458214,0.5911,4291.4,4291.3,0.454]
[1757433458513,0.8151,4291.4,4291.3,0.454]
[1757433458914,0.8151,4291.7,4291.6,0.454]
[1757433462617,0.1165,4291.8,4291.3,3.2078]
[1757433462618,0.8151,4291.4,4291.3,3.2078]
[1757433463309,0.8151,4291.4,4291.3,3.4373]
[1757433464712,0.8151,4291.4,4291.3,3.2078]
[1757433464914,0.8151,4291.4,4291.1,0.24]
[1757433465109,0.8151,4291.4,4291.0,0.24]
[1757433466610,0.8151,4291.4,4290.7,3.2078]
[1757433466611,0.4447,4290.8,4290.7,3.2078]
[1757433466912,0.7966,4290.3,4290.2,3.2078]
[1757433467214,0.3519,4289.9,4289.6,3.2078]
[1757433467511,0.1438,4289.5,4289.1,3.2078]
[1757433467713,0.3519,4289.4,4289.3,0.7404]
[1757433467911,0.7966,4289.4,4289.3,0.4538]
[1757433468105,0.5705,4289.4,4289.3,0.4538]
[1757433470017,0.7966,4289.4,4289.3,0.6938]
[1757433470414,0.5705,4289.4,4289.3,0.9804]
[1757433470712,0.3519,4289.9,4289.3,0.9804]
[1757433470918,0.3519,4289.9,4289.8,0.7404]
[1757433471120,0.3519,4290.4,4289.8,0.7404]
[1757433471709,0.2186,4290.4,4290.3,0.4538]
[1757433471912,0.5705,4290.4,4290.3,0.7404]
[1757433472309,0.5705,4290.4,4289.6,3.2078]
[1757433472310,0.1438,4290.0,4289.7,0.2866]
[1757433472515,0.7966,4289.8,4289.7,0.4538]
[1757433473015,0.7966,4289.8,4289.7,0.4681]
[1757433473214,0.9131,4289.8,4289.7,0.4681]
[1757433475316,0.3519,4289.7,4289.1,3.2078]
[1757433475519,0.7966,4289.2,4289.1,3.6616]
[1757433475723,0.7966,4289.2,4289.1,3.6759]
[1757433476313,0.7966,4289.2,4289.1,0.4681]
[1757433476714,0.7966,4288.8,4288.7,33.567]
[1757433476913,0.7966,4288.8,4288.7,33.807]
[1757433477114,0.7966,4288.8,4288.7,0.6938]
[1757433478115,0.7966,4288.8,4288.7,0.2281]
[1757433478725,0.3519,4288.7,4288.6,3.2078]
[1757433478918,0.2186,4288.2,4288.1,3.6616]
[1757433479122,0.5705,4288.2,4288.1,4.1882]
[1757433479733,0.3519,4288.2,4288.1,4.1882]
[1757433479926,0.3519,4288.8,4288.7,0.4538]
[1757433480116,0.5705,4288.8,4288.7,0.7404]
[1757433480323,0.7966,4288.8,4288.7,0.4538]
[1757433481331,0.1438,4289.0,4288.1,3.4359]
[1757433481332,0.2186,4288.2,4288.1,3.4359]
[1757433481530,0.5705,4288.2,4288.1,3.9016]
[1757433481723,0.5705,4288.2,4288.1,4.1882]
[1757433482232,0.7966,4288.2,4288.1,3.6759]
[1757433482628,0.7966,4288.2,4288.1,3.9016]
[1757433482930,0.7966,4288.2,4288.1,3.6759]
[1757433483334,0.7966,4288.2,4288.1,3.9016]
[1757433484031,0.5705,4288.2,4288.1,4.1882]
[1757433484831,0.7966,4288.2,4288.1,3.9016]
[1757433487230,0.7966,4288.2,4288.1,4.1882]
[1757433487429,0.7966,4288.2,4288.1,3.9016]
[1757433487829,0.3519,4288.2,4288.1,4.1882]
[1757433488229,0.5705,4288.2,4288.1,4.1882]
[1757433489035,0.3519,4288.4,4288.1,3.9016]
[1757433489229,0.3519,4288.4,4288.3,0.2281]
[1757433489435,0.3519,4288.4,4288.3,0.7404]
[1757433489631,0.1438,4289.0,4288.3,0.9804]
[1757433489840,0.5705,4288.9,4288.8,0.7404]
[1757433490135,0.7966,4288.9,4288.8,0.4538]
[1757433492033,0.3519,4288.9,4288.8,0.7404]
[1757433493330,0.5705,4288.9,4288.8,0.7404]
[1757433493933,0.7966,4288.9,4288.8,0.4538]
[1757433494336,0.7966,4288.9,4288.8,0.7404]
[1757433494633,0.4447,4288.9,4288.7,3.2078]
[1757433494834,0.1438,4288.5,4288.0,3.2078]
[1757433495140,0.7966,4288.1,4288.0,3.4359]
[1757433497335,0.7966,4288.1,4288.0,3.6616]
[1757433497841,0.9132,4288.1,4288.0,3.6616]
[1757433498138,0.9132,4288.1,4288.0,3.9357]
[1757433499235,0.6871,4288.1,4288.0,3.9357]
[1757433499439,0.1166,4288.1,4288.0,3.9357]
[1757433501528,0.4615,4288.1,4288.0,4.1757]
[1757433502538,0.1166,4288.1,4288.0,4.1757]
[1757433503638,0.6826,4288.1,4288.0,3.9357]
[1757433503832,0.6826,4288.1,4288.0,4.1757]
[1757433504939,0.1166,4288.1,4288.0,4.1757]
[1757433505839,0.4615,4288.1,4288.0,4.1757]
[1757433506240,0.1166,4288.1,4288.0,4.1757]
[1757433506639,0.1166,4288.1,4288.0,3.9357]
[1757433506834,0.1166,4288.1,4288.0,4.1757]
[1757433508136,0.3449,4288.9,4288.8,0.4412]
[1757433508335,1.00452201,4288.9,4288.8,0.6812]
[1757433508543,1.22562201,4288.9,4288.8,0.6812]
[1757433508740,1.09266965,4288.9,4288.8,0.6812]
[1757433510043,1.09266965,4288.9,4288.8,0.8387]
[1757433510044,0.3449,4288.9,4288.8,0.8387]
[1757433510242,0.4887,4289.0,4288.8,0.6812]
[1757433510442,0.4887,4289.0,4288.9,0.5987]
[1757433510840,0.3449,4289.0,4288.9,0.5987]
[1757433511042,0.2211,4289.4,4289.3,0.4412]
[1757433511249,0.69892133,4289.4,4289.3,0.6812]
[1757433511447,1.22549868,4289.4,4289.3,0.6812]
[1757433512142,1.09257735,4289.4,4289.3,0.6812]
[1757433512339,0.566,4289.4,4289.3,0.6812]
[1757433512936,0.786,4289.4,4289.3,0.6812]
[1757433514437,0.3449,4289.4,4289.3,0.6812]
[1757433514744,0.3449,4289.4,4289.3,0.8387]
[1757433515246,0.566,4289.4,4289.3,0.8387]
[1757433515546,0.566,4289.4,4289.3,0.6812]
[1757433516136,0.786,4289.4,4289.3,0.6812]
[1757433517948,0.786,4289.4,4289.3,0.4412]
[1757433518142,0.786,4289.4,4289.3,0.6812]
[1757433519041,0.3449,4289.3,4289.2,3.2078]
[1757433519247,0.786,4289.2,4289.1,0.24]
[1757433520248,0.4411,4289.2,4288.5,3.2078]
[1757433520548,0.1438,4289.5,4288.6,0.6802]
[1757433520549,0.786,4288.7,4288.6,0.6802]
[1757433523148,0.3449,4288.7,4288.6,0.6802]
[1757433523654,0.3449,4288.7,4288.6,0.8377]
[1757433524949,0.4411,4288.7,4288.6,0.2183]
[1757433525147,0.786,4288.7,4288.6,0.6802]
[1757433525849,0.786,4288.7,4288.6,0.239]
[1757433526043,0.786,4288.6,4288.5,3.2078]
[1757433526241,0.786,4288.6,4288.5,3.4468]
[1757433526651,0.786,4288.6,4288.5,3.6651]
[1757433527057,0.786,4288.6,4288.5,3.2078]
[1757433527251,0.7827,4288.1,4288.0,3.4271]
[1757433527554,0.3485,4288.1,4288.0,4.028]
[1757433527947,0.3485,4288.1,4288.0,3.8817]
[1757433527948,0.5647,4288.1,4288.0,3.8817]
[1757433531757,0.7827,4288.1,4288.0,3.8817]
[1757433535157,0.7827,4288.1,4288.0,3.4468]
[1757433535357,0.7827,4288.1,4288.0,3.2078]
[1757433535557,0.7827,4288.1,4288.0,3.4468]
[1757433535755,0.7827,4288.1,4288.0,3.6661]
[1757433537860,0.7827,4288.1,4288.0,3.8817]
[1757433539657,0.3485,4288.4,4288.0,3.8817]
[1757433539858,0.3495,4288.5,4288.4,0.2193]
[1757433540063,0.916,4288.5,4288.4,0.4583]
[1757433540364,0.916,4288.5,4288.4,0.239]
[1757433541666,0.3485,4288.4,4288.0,3.2078]
[1757433541858,0.7827,4288.2,4288.1,0.239]
[1757433542158,0.7827,4288.2,4288.1,0.4583]
[1757433542353,0.4342,4288.2,4288.0,3.2078]
[1757433542560,0.7827,4288.1,4288.0,3.2078]
[1757433542754,0.7827,4287.8,4287.7,0.239]
[1757433543164,0.7827,4287.8,4287.7,0.4583]
[1757433544764,0.7827,4287.8,4287.7,0.6739]
[1757433546468,0.3485,4288.2,4287.7,0.6739]
[1757433546670,0.7827,4288.4,4288.3,0.2193]
[1757433547365,0.7827,4288.4,4288.2,0.239]
[1757433547567,0.2162,4287.6,4287.5,0.5812]
[1757433547869,0.5647,4287.6,4287.5,0.8202]
[1757433548169,0.916,4287.5,4287.4,3.2078]
[1757433548364,0.916,4287.5,4287.4,3.6661]
[1757433548570,0.916,4287.5,4287.4,3.8817]
[1757433549365,0.916,4287.5,4287.4,3.6427]
[1757433549563,0.916,4287.5,4287.4,3.8817]
[1757433550871,0.916,4287.5,4287.4,3.6427]
[1757433551070,0.916,4287.5,4287.4,3.8817]
[1757433551974,0.916,4287.5,4287.4,3.6427]
[1757433552164,0.916,4287.5,4287.4,3.8817]
[1757433553575,0.916,4287.5,4287.4,3.4468]
[1757433553974,0.916,4287.5,4287.4,3.6661]
[1757433554368,0.916,4287.5,4287.4,3.8817]
[1757433556872,0.698,4287.5,4287.4,3.8817]
[1757433557074,0.698,4287.5,4287.4,4.016]
[1757433558069,3.3411,4288.5,4287.9,0.4298]
[1757433558270,0.16152268,4288.4,4288.3,0.5641]
[1757433558475,0.1314,4289.0,4288.3,0.6688]
[1757433558674,0.16155818,4288.9,4288.8,0.4298]
[1757433558870,0.93735818,4288.9,4288.8,0.6688]
[1757433559983,0.93735818,4288.9,4288.8,0.4298]
[1757433560164,0.7758,4288.9,4288.8,0.4298]
[1757433560366,0.7758,4288.9,4288.8,0.6688]
[1757433567174,0.7758,4288.9,4288.8,0.4298]
[1757433567380,0.3418,4288.9,4288.8,0.8031]
[1757433567876,0.3418,4288.9,4288.8,0.6688]
[1757433568079,0.7758,4288.9,4288.8,0.6688]
[1757433570780,0.434,4288.7,4288.6,3.4468]
[1757433571082,0.434,4288.7,4287.6,1.81147831]
[1757433571083,0.434,4288.1,4288.0,3.2078]
[1757433571276,0.7758,4288.1,4288.0,3.4468]
[1757433572480,0.7758,4288.1,4288.0,3.6617]
[1757433572874,0.7758,4288.1,4288.0,3.2078]
[1757433573180,0.9132,4287.5,4287.4,3.6617]
[1757433573383,0.9132,4287.5,4287.4,3.8766]
[1757433574086,0.7035,4287.5,4287.4,4.0109]
[1757433576781,0.7035,4287.5,4287.4,3.8766]
[1757433576986,0.9132,4287.5,4287.4,3.8766]
[1757433577485,0.7035,4287.5,4287.4,4.0109]
[1757433579287,0.7035,4287.5,4287.4,3.8766]
[1757433579587,0.9132,4287.5,4287.4,3.6617]
[1757433580082,0.9132,4287.5,4287.4,3.2078]
[1757433580277,0.7758,4287.4,4287.3,0.4539]
[1757433583081,0.7758,4287.4,4287.3,0.2149]
[1757433583282,0.7758,4287.4,4287.3,0.4539]
[1757433583583,0.7758,4287.4,4287.3,0.6688]
[1757433585385,0.7758,4287.4,4286.9,3.2078]
[1757433585582,0.1374,4287.5,4286.9,3.6376]
[1757433585583,0.3617,4287.0,4286.9,3.6376]
[1757433585780,0.7035,4287.0,4286.9,3.8766]
[1757433586174,0.7035,4287.0,4286.9,3.9995]
[1757433586578,0.1374,4287.5,4286.9,3.8766]
[1757433586777,0.3071,4287.4,4287.3,0.392]
[1757433586979,0.522,4287.4,4287.3,0.631]
[1757433587578,0.7471,4287.4,4287.3,0.631]
[1757433587780,0.8807,4287.0,4286.9,3.5998]
[1757433587980,0.6556,4287.0,4286.9,3.8388]
[1757433588385,0.6556,4287.0,4286.9,3.5998]
[1757433588584,0.6556,4287.0,4286.9,3.8388]
[1757433588784,0.8807,4287.0,4286.9,3.8388]
[1757433589776,0.8807,4287.0,4286.9,3.5998]
[1757433589994,0.8807,4287.0,4286.9,3.6428]
[1757433591086,0.8807,4287.0,4286.9,3.8388]
[1757433592588,0.4407,4287.0,4286.9,3.8388]
[1757433592788,0.4407,4287.0,4286.9,3.9613]
[1757433592989,0.6556,4287.0,4286.9,3.8388]
[1757433593385,0.8807,4287.0,4286.9,3.5998]
[1757433593590,0.8807,4287.0,4286.9,3.8388]
[1757433595591,0.8807,4287.0,4286.9,3.4468]
[1757433596185,0.8807,4287.0,4286.9,3.6428]
[1757433596887,0.8807,4287.0,4286.9,3.4468]
[1757433597292,0.8807,4287.0,4286.9,3.6428]
[1757433598489,0.8807,4287.0,4286.9,3.8388]
[1757433599289,0.8807,4287.0,4286.9,3.5998]
[1757433599495,0.8807,4287.0,4286.9,3.8388]
[1757433600194,0.3071,4287.0,4286.9,3.8388]
[1757433600401,0.1374,4287.5,4286.9,3.8388]
[1757433600590,0.522,4287.1,4287.0,0.1225]
[1757433601096,0.1374,4287.5,4287.4,0.392]
[1757433601293,0.3523,4287.5,4287.4,0.392]
[1757433601593,0.8845,4287.5,4287.4,0.392]
[1757433602498,0.7471,4286.7,4286.6,1.67622906]
[1757433602792,0.3071,4286.9,4286.8,0.5145]
[1757433603391,0.7471,4286.9,4286.8,0.392]
[1757433603690,0.3071,4286.8,4286.7,0.239]
[1757433603885,0.3071,4286.7,4286.6,1.67622906]
[1757433605192,0.7471,4286.7,4286.6,2.06822906]
[1757433605490,0.7471,4286.7,4286.6,1.67622906]
[1757433606192,0.7471,4286.7,4286.6,1.87222906]
[1757433606393,3.2078,4287.1,4286.6,1.67622906]
[1757433606696,0.3523,4287.5,4287.4,0.196]
[1757433606995,1.25989802,4287.5,4287.0,0.239]
[1757433607194,0.3071,4287.1,4287.0,0.7535]
[1757433607391,0.7471,4286.9,4286.8,3.2078]
[1757433607599,0.522,4286.4,4286.3,3.5998]
[1757433607897,0.522,4286.4,4286.3,3.8388]
[1757433608397,0.7471,4286.4,4286.3,3.8388]
[1757433608787,0.7471,4286.4,4286.3,0.631]
[1757433609393,0.1336,4286.5,4285.8,3.4038]
[1757433609394,0.7471,4285.9,4285.8,3.4038]
[1757433609793,0.7471,4285.9,4285.8,3.5998]
[1757433609992,0.3071,4285.9,4285.8,3.9613]
[1757433610297,0.5736,4286.5,4286.4,0.196]
[1757433610500,0.14759362,4286.5,4286.4,0.5145]
[1757433610701,0.4407,4287.0,4286.9,0.392]
[1757433610893,0.8807,4287.0,4286.9,0.392]
[1757433612590,0.8807,4287.0,4286.9,0.196]
[1757433612797,0.8807,4287.0,4286.9,0.392]
[1757433613302,0.1374,4287.5,4286.9,3.5998]
[1757433613498,0.522,4287.1,4287.0,0.631]
[1757433614594,0.7471,4287.1,4287.0,0.392]
[1757433614794,0.7471,4287.1,4287.0,0.435]
[1757433615199,0.7471,4287.1,4287.0,0.631]
[1757433615995,0.7471,4287.1,4287.0,0.196]
[1757433616198,0.7471,4287.1,4287.0,0.435]
[1757433618102,0.7471,4287.1,4287.0,0.6124]
[1757433618606,0.3234,4287.4,4287.3,0.3548]
[1757433618903,0.5287,4287.4,4287.3,0.5938]
[1757433619301,0.7378,4287.4,4287.3,0.5938]
[1757433619498,0.7378,4287.4,4287.3,0.1774]
[1757433619706,0.8694,4287.0,4286.9,3.5626]
[1757433620013,0.8694,4287.0,4286.9,3.6242]
[1757433620503,0.8694,4287.0,4286.9,3.8016]
[1757433621306,0.6603,4287.0,4286.9,3.8016]
[1757433622109,0.6603,4287.0,4286.9,3.9125]
[1757433622298,0.6603,4287.0,4286.9,3.8016]
[1757433623201,0.1374,4287.5,4286.9,3.8016]
[1757433623400,0.8752,4287.5,4287.4,0.3548]
[1757433624705,0.8752,4287.5,4287.2,0.239]
[1757433625710,0.546,4287.0,4286.9,3.3852]
[1757433625909,0.8694,4287.0,4286.9,3.6242]
[1757433626512,0.8694,4287.0,4286.9,3.8016]
[1757433627213,0.8694,4287.0,4286.9,3.5626]
[1757433627524,0.8694,4287.0,4286.9,3.8016]
[1757433627711,0.455,4287.0,4286.9,3.9125]
[1757433628307,0.3234,4287.4,4286.9,3.8016]
[1757433628510,0.455,4287.0,4286.9,3.9125]
[1757433628900,0.3234,4287.0,4286.9,3.9125]
[1757433629513,0.6603,4287.0,4286.9,3.8016]
[1757433629713,0.455,4287.0,4286.9,3.8016]
[1757433629912,0.455,4287.0,4286.9,3.9125]
[1757433630312,0.1374,4287.5,4287.4,0.4657]
[1757433630313,0.3234,4287.5,4287.4,0.4657]
[1757433630511,0.3234,4287.5,4287.4,0.7047]
[1757433630916,0.3234,4287.5,4287.4,3.9125]
[1757433631118,0.1336,4288.0,4287.4,3.9125]
[1757433631311,0.3234,4287.9,4287.8,0.3548]
[1757433631513,0.3234,4287.9,4287.8,0.7047]
[1757433632515,0.5287,4287.9,4287.8,0.5938]
[1757433633118,0.3234,4287.9,4287.8,0.7047]
[1757433633711,0.5287,4287.9,4287.8,0.4657]
[1757433633906,0.3234,4287.9,4287.8,0.7047]
[1757433634116,0.6623,4288.5,4288.4,0.3548]
[1757433634317,3.6628,4289.0,4288.4,0.4657]
[1757433634615,0.5287,4288.9,4288.8,0.3548]
[1757433634820,0.5287,4288.9,4288.7,3.2078]
[1757433634821,0.3234,4288.8,4288.7,3.2078]
[1757433635118,0.3234,4288.8,4288.7,3.6242]
[1757433635119,0.7378,4288.8,4288.7,3.6242]
[1757433635315,0.7378,4289.4,4289.3,0.3548]
[1757433636423,0.5287,4289.4,4289.3,0.3548]
[1757433636814,0.3234,4289.4,4289.3,0.4657]
[1757433637619,0.5287,4289.4,4289.3,0.3548]
[1757433638124,0.3234,4289.4,4289.3,0.4657]
[1757433638427,0.5287,4289.9,4289.8,0.3548]
[1757433638919,0.7378,4289.9,4289.8,0.3548]
[1757433639325,0.5287,4289.9,4289.8,0.3548]
[1757433639621,0.7378,4289.9,4289.8,0.3548]
[1757433639918,0.5287,4289.9,4289.8,0.3548]
[1757433640125,0.5287,4289.9,4289.8,0.5938]
[1757433640320,0.7378,4289.9,4289.8,0.5938]
[1757433640526,0.7378,4289.9,4289.8,0.3548]
[1757433640720,0.7378,4289.9,4289.8,0.5938]
[1757433644428,0.5287,4289.9,4289.8,0.5938]
[1757433644921,0.1316,4290.0,4289.8,0.694]
[1757433645121,0.6603,4290.0,4289.9,0.3208]
[1757433645322,0.3234,4289.9,4289.7,3.2078]
[1757433645526,0.7378,4289.9,4289.8,0.3994]
[1757433646121,0.7378,4289.9,4289.8,0.5598]
[1757433646725,0.2964,4289.8,4289.7,3.2078]
[1757433646931,0.2964,4289.8,4289.7,3.4468]
[1757433647127,0.6981,4289.8,4289.7,3.606]
[1757433648431,0.6981,4289.8,4289.7,3.7652]
[1757433649429,0.4997,4289.8,4289.7,3.7652]
[1757433649629,0.2964,4289.8,4289.7,3.8647]
[1757433651329,0.4997,4289.8,4289.7,3.7652]
[1757433652225,0.6981,4289.8,4289.7,3.2078]
[1757433652533,0.6981,4289.8,4289.7,3.4468]
[1757433652935,0.2964,4289.8,4289.7,3.7652]
[1757433653132,0.2964,4289.8,4289.7,3.8647]
[1757433655133,0.1316,4290.0,4289.7,3.7652]
[1757433655433,0.428,4290.0,4289.9,0.3184]
[1757433655635,0.428,4290.0,4289.9,0.6569]
[1757433656234,0.8297,4290.0,4289.9,0.3982]
[1757433657633,0.8297,4290.0,4289.9,0.5574]
[1757433658034,0.6313,4290.0,4289.9,0.6569]
[1757433658638,0.8297,4290.0,4289.9,0.5574]
[1757433659828,0.2964,4290.0,4289.9,0.6569]
[1757433660138,0.2964,4290.4,4290.3,0.4179]
[1757433660340,0.2964,4290.4,4290.3,0.6569]
[1757433660542,0.4997,4290.4,4290.3,0.5574]
[1757433660845,0.428,4290.5,4290.3,0.5574]
[1757433661037,0.428,4290.5,4290.4,0.4179]
[1757433661038,0.2964,4290.5,4290.4,0.4179]
[1757433661232,0.6276,4290.5,4290.4,0.5574]
[1757433661443,0.826,4290.5,4290.4,0.5574]
[1757433662742,0.6276,4290.5,4290.4,0.5574]
[1757433662935,0.6276,4290.5,4290.4,0.6569]
[1757433663137,0.4243,4290.5,4290.4,0.6569]
[1757433663937,0.6276,4290.5,4290.4,0.5574]
[1757433664137,0.826,4290.5,4290.4,0.5574]
[1757433664544,0.826,4290.5,4290.4,0.1592]
[1757433664743,0.5296,4290.5,4290.4,0.239]
[1757433665237,0.826,4290.5,4290.4,0.239]
[1757433665642,0.2964,4290.4,4290.2,3.2078]
[1757433665844,0.2964,4290.4,4290.3,0.239]
[1757433666139,0.2964,4290.3,4290.2,3.2078]
[1757433666346,0.2964,4290.3,4290.2,3.606]
[1757433666347,0.6981,4290.3,4290.2,3.606]
[1757433666740,0.6981,4290.3,4290.2,3.7652]
[1757433666939,0.4997,4290.3,4290.2,3.8647]
[1757433667336,0.4997,4290.3,4290.2,3.7652]
[1757433667542,0.1279,4290.5,4290.4,0.3184]
[1757433667746,3.3394,4291.5,4290.4,0.6569]
[1757433668050,0.4997,4290.9,4290.8,3.5262]
[1757433668253,0.4997,4290.9,4290.8,3.7652]
[1757433669251,0.6981,4290.9,4290.8,3.7652]
[1757433669752,0.6981,4290.9,4290.8,3.95237609]
[1757433669951,0.6981,4290.9,4290.8,3.7652]
[1757433670346,0.6981,4290.9,4290.8,3.606]
[1757433670645,0.6981,4290.9,4290.8,0.239]
[1757433671446,0.6981,4290.9,4290.8,0.5574]
[1757433673046,0.6981,4290.9,4290.8,3.7652]
[1757433674450,0.2964,4290.9,4290.8,3.8647]